fUSD/lending_fUSD_20250618
["ID","MTS","AMOUNT","RATE_DAILY","PERIOD"]
[366353035,1750205440191,-176.98865538,0.00016359,2]
[366353036,1750205440201,-5346.37537159,0.00016366,2]
[366353037,1750205440211,-431.66088299,0.00016368,2]
[366353038,1750205440221,-2735.43932087,0.00016369,2]
[366353039,1750205440233,-11587.1081972,0.00016369,2]
[366353040,1750205440245,-1222.56000018,0.00016369,2]
[366353041,1750205440301,-6393.55222051,0.00016369,2]
[366353042,1750205440311,-278.88874353,0.00016372,2]
[366353043,1750205440322,-833.87704394,0.00016373,2]
[366353044,1750205440332,-124.72707315,0.00016373,2]
[366353045,1750205440344,-369.18577787,0.00016373,2]
[366353046,1750205440357,-277.595,0.00016373,2]
[366353047,1750205440369,-1552.04692205,0.00016373,2]
[366353048,1750205440379,-1677.20704706,0.00016374,2]
[366353049,1750205440394,-551.79295294,0.00016374,2]
[366353050,1750205440404,-479.0,0.00016375,5]
[366353051,1750205440414,-150.0,0.00016381,2]
[366353052,1750205440423,-151.0,0.00016384,2]
[366353053,1750205440434,-374.906464,0.00016384,2]
[366353054,1750205440444,-374.906464,0.00016384,2]
[366353055,1750205440453,-151.0,0.00016388,2]
[366353056,1750205440463,-151.0,0.00016388,2]
[366353057,1750205440473,-151.0,0.00016388,2]
[366353058,1750205440482,-2660.59411906,0.00016391,2]
[366353059,1750205440494,-1567.92316173,0.00016391,2]
[366353060,1750205440505,-261.92,0.00016391,2]
[366353061,1750205440570,-1006.52512315,0.00016391,2]
[366353062,1750205441366,-420.21,0.00015889,2]
[366353063,1750205441376,-192.29163547,0.00016139,2]
[366353064,1750205441386,-500.0,0.00016139,2]
[366353065,1750205441396,-500.0,0.00016139,2]
[366353066,1750205441406,-206.17064624,0.00016139,2]
[366353067,1750205441416,-500.0,0.00016139,2]
[366353068,1750205441425,-169.36831355,0.00016139,2]
[366353069,1750205441435,-448.7742888,0.00016139,2]
[366353070,1750205441446,-500.0,0.00016139,2]
[366353071,1750205441455,-500.0,0.00016139,2]
[366353072,1750205441465,-420.21,0.0001633,2]
[366353073,1750205441475,-9720.96660454,0.00016391,2]
[366353074,1750205441485,-5346.37537159,0.00016393,2]
[366353075,1750205441494,-170.95907263,0.00016393,2]
[366353076,1750205441504,-387.16117528,0.00016397,2]
[366353077,1750205441513,-3591.39835968,0.00016398,2]
[366353078,1750205441523,-3591.39835968,0.00016399,2]
[366353079,1750205441533,-2770.96,0.000164,2]
[366353080,1750205441543,-151.0,0.000164,2]
[366353081,1750205441552,-151.0,0.000164,2]
[366353082,1750205441563,-2229.0,0.00016402,2]
[366353083,1750205441574,-479.0,0.00016403,5]
[366353084,1750205441583,-431.66088299,0.00016413,2]
[366353085,1750205441593,-150.246,0.00016413,2]
[366353086,1750205441602,-150.15,0.00016413,2]
[366353087,1750205441612,-150.121,0.00016413,2]
[366353088,1750205441622,-637.0,0.00016413,2]
[366353089,1750205441632,-802.0,0.00016413,2]
[366353090,1750205441642,-2002.0,0.00016413,2]
[366353091,1750205441651,-590.0,0.00016413,2]
[366353092,1750205441661,-927.0,0.00016413,2]
[366353093,1750205441671,-558.0,0.00016413,2]
[366353094,1750205441680,-1276.0,0.00016413,2]
[366353095,1750205441690,-1459.24943924,0.00016413,2]
[366353096,1750205441707,-447.72571293,0.00016139,2]
[366353097,1750205441717,-214.75056076,0.00016413,2]
[366353098,1750205441726,-606.91987878,0.00016413,2]
[366353099,1750205441739,-434.15677188,0.00016413,2]
[366353100,1750205441751,-118.92334934,0.00016413,2]
[366353101,1750205441761,-1981.1317802,0.00016413,2]
[366353102,1750205441772,-2108.8682198,0.00016413,2]
[366353103,1750205441781,-2207.36188548,0.00016413,2]
[366353104,1750205442384,-4903.63811452,0.00016413,2]
[366353105,1750205442394,-854.0,0.00016413,2]
[366353106,1750205442404,-155.0,0.00016413,2]
[366353107,1750205442414,-152.59689,0.00016413,2]
[366353108,1750205442424,-151.0,0.00016413,2]
[366353109,1750205442434,-151.0,0.00016413,2]
[366353110,1750205442443,-151.0,0.00016413,2]
[366353111,1750205442453,-151.0,0.00016413,2]
[366353112,1750205442463,-151.0,0.00016413,2]
[366353113,1750205442473,-230.611154,0.00016413,2]
[366353114,1750205442482,-151.0,0.00016413,2]
[366353115,1750205442492,-151.0,0.00016413,2]
[366353116,1750205442502,-151.0,0.00016413,2]
[366353117,1750205442511,-151.0,0.00016413,2]
[366353118,1750205442521,-151.0,0.00016413,2]
[366353119,1750205442530,-186.292219,0.00016413,2]
[366353120,1750205442540,-186.292219,0.00016413,2]
[366353121,1750205442549,-259.222646,0.00016413,2]
[366353122,1750205442559,-151.0,0.00016413,2]
[366353123,1750205442568,-151.0,0.00016413,2]
[366353124,1750205442578,-161.204742,0.00016413,2]
[366353125,1750205442588,-161.204742,0.00016413,2]
[366353126,1750205442597,-151.0,0.00016413,2]
[366353127,1750205442607,-210.84391318,0.00016428,2]
[366353128,1750205442616,-2229.7964257,0.00016429,2]
[366353129,1750205442626,-10181.8798266,0.0001643,2]
[366353130,1750205442636,-151.0,0.0001643,2]
[366353131,1750205442646,-151.620939,0.0001643,2]
[366353132,1750205442656,-151.0,0.0001643,2]
[366353133,1750205442665,-151.0,0.0001643,2]
[366353134,1750205442675,-151.0,0.0001643,2]
[366353135,1750205442685,-497.0,0.0001643,5]
[366353136,1750205442694,-3204.40829004,0.00016432,2]
[366353137,1750205442704,-155.0,0.00016437,2]
[366353138,1750205442713,-151.0,0.00016437,2]
[366353139,1750205442723,-151.0,0.00016437,2]
[366353140,1750205442732,-151.0,0.00016437,2]
[366353141,1750205442741,-151.0,0.00016437,2]
[366353142,1750205442750,-151.0,0.00016437,2]
[366353143,1750205442759,-151.0,0.00016437,2]
[366353144,1750205442768,-151.0,0.00016437,2]
[366353145,1750205442778,-151.0,0.00016437,2]
[366353146,1750205442787,-151.0,0.00016437,2]
[366353147,1750205442796,-151.0,0.00016437,2]
[366353148,1750205442806,-151.0,0.00016437,2]
[366353149,1750205442816,-151.0,0.00016437,2]
[366353150,1750205442826,-151.0,0.00016437,2]
[366353151,1750205442836,-151.0,0.00016437,2]
[366353152,1750205442846,-151.0,0.00016437,2]
[366353153,1750205442855,-526.033448,0.00016437,2]
[366353154,1750205442865,-604.220154,0.00016437,2]
[366353155,1750205442874,-604.220154,0.00016437,2]
[366353156,1750205442887,-194.87,0.00016437,2]
[366353157,1750205442897,-698.0,0.00016438,2]
[366353158,1750205442906,-151.0,0.00016438,2]
[366353159,1750205442917,-151.0,0.00016438,2]
[366353160,1750205442927,-151.0,0.00016438,2]
[366353161,1750205442936,-151.0,0.00016438,2]
[366353162,1750205442947,-170.466838,0.00016438,2]
[366353163,1750205442957,-151.0,0.00016438,2]
[366353164,1750205442968,-151.0,0.00016438,2]
[366353165,1750205442977,-151.0,0.00016438,2]
[366353167,1750205442987,-210.374909,0.00016438,2]
[366353168,1750205442997,-210.374909,0.00016438,2]
[366353169,1750205443006,-210.374909,0.00016438,2]
[366353170,1750205443016,-210.374909,0.00016438,2]
[366353171,1750205443026,-210.374909,0.00016438,2]
[366353172,1750205443036,-210.374909,0.00016438,2]
[366353173,1750205443047,-210.374909,0.00016438,2]
[366353174,1750205443057,-210.374909,0.00016438,2]
[366353175,1750205443066,-151.0,0.00016438,2]
[366353176,1750205443076,-153.970292,0.00016438,2]
[366353177,1750205443086,-151.0,0.00016438,2]
[366353178,1750205443096,-151.0,0.00016438,2]
[366353179,1750205443106,-215.564748,0.00016438,2]
[366353180,1750205443116,-2435.515444,0.00016438,2]
[366353181,1750205443126,-161.916212,0.00016438,2]
[366353182,1750205443136,-158.840487,0.00016438,2]
[366353183,1750205443146,-158.840487,0.00016438,2]
[366353184,1750205443156,-158.840487,0.00016438,2]
[366353185,1750205443165,-158.840487,0.00016438,2]
[366353186,1750205443175,-158.840487,0.00016438,2]
[366353187,1750205443184,-158.840487,0.00016438,2]
[366353188,1750205443194,-158.840487,0.00016438,2]
[366353189,1750205443204,-158.840487,0.00016438,2]
[366353190,1750205443214,-151.0,0.00016438,2]
[366353191,1750205443224,-151.0,0.00016438,2]
[366353192,1750205443234,-151.0,0.00016438,2]
[366353193,1750205443244,-274.06565,0.00016438,2]
[366353194,1750205443254,-151.0,0.00016438,2]
[366353195,1750205443263,-151.0,0.00016438,2]
[366353196,1750205443274,-164.793999,0.00016438,2]
[366353197,1750205443284,-151.057162,0.00016438,2]
[366353198,1750205443294,-151.0,0.00016438,2]
[366353199,1750205443304,-152.073268,0.00016438,2]
[366353200,1750205443314,-151.0,0.00016438,2]
[366353201,1750205443324,-151.0,0.00016438,2]
[366353202,1750205443334,-151.0,0.00016438,2]
[366353203,1750205443344,-151.0,0.00016438,2]
[366353204,1750205443353,-171.666236,0.00016438,2]
[366353205,1750205443363,-153.755104,0.00016438,2]
[366353206,1750205443373,-153.755104,0.00016438,2]
[366353207,1750205443383,-153.755104,0.00016438,2]
[366353208,1750205443393,-153.755104,0.00016438,2]
[366353209,1750205443404,-153.755104,0.00016438,2]
[366353210,1750205443414,-153.755104,0.00016438,2]
[366353211,1750205443423,-153.755104,0.00016438,2]
[366353212,1750205443433,-153.755104,0.00016438,2]
[366353213,1750205443443,-151.0,0.00016438,2]
[366353214,1750205443453,-151.0,0.00016438,2]
[366353215,1750205443463,-151.0,0.00016438,2]
[366353216,1750205443473,-151.0,0.00016438,2]
[366353217,1750205443482,-427.13898154,0.00016438,2]
[366353218,1750205443492,-151.0,0.00016438,2]
[366353220,1750205443502,-151.0,0.00016438,2]
[366353222,1750205443512,-490.0,0.00016438,2]
[366353224,1750205443522,-373.44377422,0.00016438,2]
[366353226,1750205443532,-490.0,0.00016438,2]
[366353227,1750205443543,-151.0,0.00016438,2]
[366353228,1750205443553,-167.944039,0.00016438,2]
[366353229,1750205443564,-151.0,0.00016438,2]
[366353230,1750205443574,-151.0,0.00016438,2]
[366353231,1750205443584,-159.843096,0.00016438,2]
[366353232,1750205443594,-219.052276,0.00016438,2]
[366353233,1750205443604,-227.197143,0.00016438,2]
[366353234,1750205443614,-467.17192961,0.00016438,2]
[366353235,1750205443624,-159.541778,0.00016438,2]
[366353236,1750205443634,-224.153777,0.00016438,2]
[366353237,1750205443645,-490.0,0.00016438,2]
[366353238,1750205443655,-490.0,0.00016438,2]
[366353239,1750205443664,-490.0,0.00016438,2]
[366353240,1750205443675,-156.564162,0.00016438,2]
[366353241,1750205443686,-490.0,0.00016438,2]
[366353242,1750205443697,-151.0,0.00016438,2]
[366353243,1750205443707,-151.0,0.00016438,2]
[366353244,1750205443716,-229.70333,0.00016438,2]
[366353245,1750205443727,-490.0,0.00016438,2]
[366353246,1750205443737,-490.0,0.00016438,2]
[366353247,1750205443747,-490.0,0.00016438,2]
[366353248,1750205443757,-490.0,0.00016438,2]
[366353249,1750205443768,-151.0,0.00016438,2]
[366353250,1750205443778,-490.0,0.00016438,2]
[366353251,1750205443788,-151.0,0.00016438,2]
[366353252,1750205443798,-490.0,0.00016438,2]
[366353253,1750205443809,-490.0,0.00016438,2]
[366353254,1750205443819,-490.0,0.00016438,2]
[366353255,1750205443830,-490.0,0.00016438,2]
[366353256,1750205443840,-490.02574596,0.00016438,2]
[366353257,1750205443850,-490.0,0.00016438,2]
[366353258,1750205443860,-484.49937059,0.00016438,2]
[366353259,1750205443872,-490.0,0.00016438,2]
[366353260,1750205443885,-490.0,0.00016438,2]
[366353261,1750205443895,-490.0,0.00016438,2]
[366353262,1750205443905,-490.0,0.00016438,2]
[366353263,1750205443916,-490.0,0.00016438,2]
[366353264,1750205443927,-490.0,0.00016438,2]
[366353265,1750205443937,-490.0,0.00016438,2]
[366353266,1750205443948,-490.0,0.00016438,2]
[366353267,1750205443959,-490.0,0.00016438,2]
[366353268,1750205443970,-490.0,0.00016438,2]
[366353269,1750205443980,-490.0,0.00016438,2]
[366353270,1750205443991,-490.0,0.00016438,2]
[366353271,1750205444001,-490.4508817,0.00016438,2]
[366353272,1750205444011,-490.0,0.00016438,2]
[366353273,1750205444022,-490.0,0.00016438,2]
[366353274,1750205444032,-490.0,0.00016438,2]
[366353275,1750205444043,-490.0,0.00016438,2]
[366353276,1750205444053,-490.0,0.00016438,2]
[366353277,1750205444065,-490.0,0.00016438,2]
[366353278,1750205444075,-490.0,0.00016438,2]
[366353279,1750205444086,-490.0,0.00016438,2]
[366353280,1750205444096,-490.0,0.00016438,2]
[366353281,1750205444107,-490.0,0.00016438,2]
[366353282,1750205444118,-490.0,0.00016438,2]
[366353283,1750205444129,-599.37,0.00016438,2]
[366353284,1750205444140,-490.0,0.00016438,2]
[366353285,1750205444150,-490.0,0.00016438,2]
[366353286,1750205444161,-490.0,0.00016438,2]
[366353287,1750205444171,-490.0,0.00016438,2]
[366353288,1750205444182,-490.0,0.00016438,2]
[366353289,1750205444192,-490.0,0.00016438,2]
[366353290,1750205444202,-723.88,0.00016438,2]
[366353291,1750205444213,-490.0,0.00016438,2]
[366353292,1750205444223,-490.0,0.00016438,2]
[366353293,1750205444234,-490.0,0.00016438,2]
[366353294,1750205444244,-490.0,0.00016438,2]
[366353295,1750205444255,-490.0,0.00016438,2]
[366353296,1750205444264,-490.0,0.00016438,2]
[366353297,1750205444274,-490.0,0.00016438,2]
[366353298,1750205444289,-490.0,0.00016438,2]
[366353299,1750205444299,-490.0,0.00016438,2]
[366353300,1750205444310,-490.0,0.00016438,2]
[366353301,1750205444321,-490.0,0.00016438,2]
[366353302,1750205444331,-707.17,0.00016438,2]
[366353303,1750205444342,-151.0,0.00016438,2]
[366353304,1750205444353,-241.200396,0.00016438,2]
[366353305,1750205444364,-490.0,0.00016438,2]
[366353306,1750205444374,-490.0,0.00016438,2]
[366353307,1750205444385,-490.0,0.00016438,2]
[366353308,1750205444396,-665.62,0.00016438,2]
[366353309,1750205444407,-490.0,0.00016438,2]
[366353310,1750205444417,-744.42,0.00016438,2]
[366353311,1750205444427,-490.0,0.00016438,2]
[366353312,1750205444437,-490.0,0.00016438,2]
[366353313,1750205444448,-490.0,0.00016438,2]
[366353314,1750205444459,-490.0,0.00016438,2]
[366353315,1750205444469,-490.0,0.00016438,2]
[366353316,1750205444479,-490.0,0.00016438,2]
[366353317,1750205444490,-490.0,0.00016438,2]
[366353318,1750205444500,-490.0,0.00016438,2]
[366353319,1750205444510,-490.0,0.00016438,2]
[366353320,1750205444521,-490.0,0.00016438,2]
[366353321,1750205444530,-490.0,0.00016438,2]
[366353322,1750205444542,-500.0,0.00016438,2]
[366353323,1750205444552,-500.0,0.00016438,2]
[366353324,1750205444562,-490.0,0.00016438,2]
[366353325,1750205444573,-490.0,0.00016438,2]
[366353326,1750205444583,-490.0,0.00016438,2]
[366353327,1750205444593,-659.83,0.00016438,2]
[366353328,1750205444603,-490.0,0.00016438,2]
[366353329,1750205444614,-490.0,0.00016438,2]
[366353330,1750205444625,-490.0,0.00016438,2]
[366353331,1750205444636,-490.0,0.00016438,2]
[366353332,1750205444646,-490.0,0.00016438,2]
[366353333,1750205444657,-490.0,0.00016438,2]
[366353334,1750205444668,-1552.57,0.00016438,2]
[366353335,1750205444679,-490.0,0.00016438,2]
[366353336,1750205444689,-490.0,0.00016438,2]
[366353338,1750205444700,-490.0,0.00016438,2]
[366353339,1750205444710,-490.0,0.00016438,2]
[366353340,1750205444721,-490.0,0.00016438,2]
[366353342,1750205444731,-490.0,0.00016438,2]
[366353343,1750205444743,-492.32,0.00016438,2]
[366353344,1750205444753,-490.0,0.00016438,2]
[366353345,1750205444763,-526.08,0.00016438,2]
[366353346,1750205444774,-490.0,0.00016438,2]
[366353347,1750205444785,-490.0,0.00016438,2]
[366353348,1750205444795,-490.0,0.00016438,2]
[366353349,1750205444806,-490.0,0.00016438,2]
[366353350,1750205444819,-490.0,0.00016438,2]
[366353351,1750205444829,-490.0,0.00016438,2]
[366353352,1750205444840,-490.0,0.00016438,2]
[366353353,1750205444850,-490.0,0.00016438,2]
[366353354,1750205444860,-490.0,0.00016438,2]
[366353355,1750205444871,-490.0,0.00016438,2]
[366353356,1750205444884,-490.0,0.00016438,2]
[366353357,1750205444895,-490.0,0.00016438,2]
[366353359,1750205444906,-508.63,0.00016438,2]
[366353361,1750205444916,-490.0,0.00016438,2]
[366353362,1750205444927,-965.97,0.00016438,2]
[366353363,1750205444937,-490.0,0.00016438,2]
[366353364,1750205444947,-490.0,0.00016438,2]
[366353365,1750205444958,-490.0,0.00016438,2]
[366353366,1750205444968,-490.0,0.00016438,2]
[366353367,1750205444979,-490.0,0.00016438,2]
[366353368,1750205444990,-490.0,0.00016438,2]
[366353369,1750205445001,-490.0,0.00016438,2]
[366353370,1750205445013,-490.0,0.00016438,2]
[366353371,1750205445025,-194.813782,0.00016438,2]
[366353372,1750205445035,-701.09,0.00016438,2]
[366353373,1750205445046,-490.0,0.00016438,2]
[366353374,1750205445057,-490.0,0.00016438,2]
[366353375,1750205445072,-490.0,0.00016438,2]
[366353376,1750205445083,-490.0,0.00016438,2]
[366353377,1750205445094,-490.0,0.00016438,2]
[366353378,1750205445105,-490.0,0.00016438,2]
[366353379,1750205445116,-315.93443534,0.00016438,2]
[366353380,1750205445126,-406.39977747,0.00016438,2]
[366353381,1750205445138,-490.0,0.00016438,2]
[366353382,1750205445149,-490.0,0.00016438,2]
[366353383,1750205445159,-498.8689741,0.00016438,2]
[366353384,1750205445170,-393.51141261,0.00016438,2]
[366353385,1750205445181,-490.0,0.00016438,2]
[366353386,1750205445191,-490.0,0.00016438,2]
[366353387,1750205445202,-490.0,0.00016438,2]
[366353388,1750205445213,-490.0,0.00016438,2]
[366353389,1750205445223,-490.0,0.00016438,2]
[366353390,1750205445234,-490.0,0.00016438,2]
[366353391,1750205445245,-151.0,0.00016438,2]
[366353392,1750205445257,-151.0,0.00016438,2]
[366353393,1750205445275,-151.0,0.00016438,2]
[366353394,1750205445286,-151.0,0.00016438,2]
[366353395,1750205445298,-151.0,0.00016438,2]
[366353396,1750205445309,-490.0,0.00016438,2]
[366353397,1750205445323,-490.0,0.00016438,2]
[366353398,1750205445333,-490.0,0.00016438,2]
[366353399,1750205445344,-855.07,0.00016438,2]
[366353400,1750205445355,-490.0,0.00016438,2]
[366353401,1750205445366,-490.0,0.00016438,2]
[366353402,1750205445377,-490.0,0.00016438,2]
[366353403,1750205445388,-834.36,0.00016438,2]
[366353404,1750205445399,-490.0,0.00016438,2]
[366353405,1750205445410,-490.0,0.00016438,2]
[366353406,1750205445422,-490.0,0.00016438,2]
[366353407,1750205445433,-490.0,0.00016438,2]
[366353408,1750205445444,-490.0,0.00016438,2]
[366353409,1750205445455,-490.0,0.00016438,2]
[366353410,1750205445467,-490.0,0.00016438,2]
[366353411,1750205445478,-490.0,0.00016438,2]
[366353412,1750205445489,-490.0,0.00016438,2]
[366353413,1750205445500,-490.0,0.00016438,2]
[366353414,1750205445511,-633.5,0.00016438,2]
[366353415,1750205445522,-991.64,0.00016438,2]
[366353416,1750205445533,-216.702538,0.00016438,2]
[366353417,1750205445544,-719.27,0.00016438,2]
[366353418,1750205445556,-595.21,0.00016438,2]
[366353419,1750205445568,-415.13547965,0.00016438,2]
[366353420,1750205445579,-490.0,0.00016438,2]
[366353421,1750205445590,-490.0,0.00016438,2]
[366353422,1750205445601,-490.0,0.00016438,2]
[366353423,1750205445612,-490.0,0.00016438,2]
[366353424,1750205445623,-490.0,0.00016438,2]
[366353425,1750205445633,-1220.36,0.00016438,2]
[366353426,1750205445644,-151.0,0.00016438,2]
[366353427,1750205445659,-211.227712,0.00016438,2]
[366353428,1750205445670,-490.0,0.00016438,2]
[366353429,1750205445681,-490.0,0.00016438,2]
[366353430,1750205445692,-461.51797319,0.00016438,2]
[366353431,1750205445703,-151.0,0.00016438,2]
[366353432,1750205445714,-151.0,0.00016438,2]
[366353433,1750205445724,-151.0,0.00016438,2]
[366353434,1750205445735,-490.0,0.00016438,2]
[366353435,1750205445746,-151.0,0.00016438,2]
[366353436,1750205445756,-151.0,0.00016438,2]
[366353437,1750205445771,-151.0,0.00016438,2]
[366353438,1750205445781,-151.0,0.00016438,2]
[366353439,1750205445792,-501.52,0.00016438,2]
[366353440,1750205445804,-151.0,0.00016438,2]
[366353441,1750205446196,-151.0,0.00016438,2]
[366353442,1750205446207,-151.0,0.00016438,2]
[366353444,1750205446217,-490.0,0.00016438,2]
[366353445,1750205446227,-151.0,0.00016438,2]
[366353446,1750205446237,-151.0,0.00016438,2]
[366353447,1750205446247,-151.0,0.00016438,2]
[366353448,1750205446257,-151.0,0.00016438,2]
[366353449,1750205446267,-151.0,0.00016438,2]
[366353450,1750205446278,-285.639548,0.00016438,2]
[366353451,1750205446288,-1524.54,0.00016438,2]
[366353452,1750205446298,-490.0,0.00016438,2]
[366353453,1750205446308,-1481.92,0.00016438,2]
[366353454,1750205446319,-554.31,0.00016438,2]
[366353455,1750205446329,-490.0,0.00016438,2]
[366353456,1750205446339,-490.0,0.00016438,2]
[366353457,1750205446349,-490.0,0.00016438,2]
[366353458,1750205446360,-490.0,0.00016438,2]
[366353459,1750205446370,-490.0,0.00016438,2]
[366353460,1750205446380,-151.0,0.00016438,2]
[366353462,1750205446390,-490.0,0.00016438,2]
[366353464,1750205446401,-151.0,0.00016438,2]
[366353466,1750205446411,-151.0,0.00016438,2]
[366353468,1750205446420,-151.0,0.00016438,2]
[366353470,1750205446429,-151.0,0.00016438,2]
[366353472,1750205446439,-151.0,0.00016438,2]
[366353474,1750205446449,-490.0,0.00016438,2]
[366353476,1750205446459,-151.0,0.00016438,2]
[366353478,1750205446469,-220.074248,0.00016438,2]
[366353479,1750205446479,-552.6,0.00016438,2]
[366353480,1750205446489,-713.14,0.00016438,2]
[366353481,1750205446500,-490.0,0.00016438,2]
[366353482,1750205446510,-490.0,0.00016438,2]
[366353483,1750205446519,-490.0,0.00016438,2]
[366353484,1750205446529,-490.0,0.00016438,2]
[366353485,1750205446539,-490.0,0.00016438,2]
[366353486,1750205446549,-490.0,0.00016438,2]
[366353487,1750205446560,-490.0,0.00016438,2]
[366353488,1750205446571,-490.0,0.00016438,2]
[366353489,1750205446581,-490.0,0.00016438,2]
[366353490,1750205446590,-490.0,0.00016438,2]
[366353491,1750205446600,-490.0,0.00016438,2]
[366353492,1750205446610,-490.0,0.00016438,2]
[366353493,1750205446620,-490.0,0.00016438,2]
[366353494,1750205446630,-490.0,0.00016438,2]
[366353495,1750205446640,-490.0,0.00016438,2]
[366353496,1750205446650,-490.0,0.00016438,2]
[366353497,1750205446660,-684.93,0.00016438,2]
[366353498,1750205446670,-490.0,0.00016438,2]
[366353499,1750205446679,-151.0,0.00016438,2]
[366353500,1750205446689,-151.0,0.00016438,2]
[366353501,1750205446699,-151.0,0.00016438,2]
[366353502,1750205446708,-151.0,0.00016438,2]
[366353503,1750205446718,-490.0,0.00016438,2]
[366353504,1750205446728,-517.87,0.00016438,2]
[366353505,1750205446738,-490.0,0.00016438,2]
[366353506,1750205446748,-490.0,0.00016438,2]
[366353507,1750205446757,-490.0,0.00016438,2]
[366353508,1750205446767,-490.0,0.00016438,2]
[366353509,1750205446777,-926.72,0.00016438,2]
[366353510,1750205446786,-490.0,0.00016438,2]
[366353511,1750205446796,-490.0,0.00016438,2]
[366353512,1750205446806,-490.0,0.00016438,2]
[366353513,1750205446817,-505.454777,0.00016438,2]
[366353514,1750205446827,-490.0,0.00016438,2]
[366353515,1750205446836,-505.454777,0.00016438,2]
[366353516,1750205446846,-505.454777,0.00016438,2]
[366353517,1750205446855,-505.454777,0.00016438,2]
[366353518,1750205446865,-505.454777,0.00016438,2]
[366353519,1750205446874,-505.454777,0.00016438,2]
[366353520,1750205446888,-490.0,0.00016438,2]
[366353521,1750205446898,-505.454777,0.00016438,2]
[366353522,1750205446908,-490.0,0.00016438,2]
[366353523,1750205446917,-505.454777,0.00016438,2]
[366353524,1750205446929,-490.0,0.00016438,2]
[366353525,1750205446938,-505.454777,0.00016438,2]
[366353526,1750205446948,-267.00822899,0.00016438,2]
[366353527,1750205446960,-490.0,0.00016438,2]
[366353528,1750205446969,-505.454777,0.00016438,2]
[366353529,1750205446979,-505.454777,0.00016438,2]
[366353530,1750205446989,-490.0,0.00016438,2]
[366353531,1750205446999,-505.454777,0.00016438,2]
[366353532,1750205447009,-505.454777,0.00016438,2]
[366353533,1750205447019,-505.454777,0.00016438,2]
[366353534,1750205447028,-505.454777,0.00016438,2]
[366353535,1750205447038,-490.0,0.00016438,2]
[366353536,1750205447049,-505.454782,0.00016438,2]
[366353537,1750205447059,-500.0,0.00016438,2]
[366353538,1750205447070,-500.0,0.00016438,2]
[366353539,1750205447080,-490.0,0.00016438,2]
[366353540,1750205447090,-500.0,0.00016438,2]
[366353541,1750205447100,-500.0,0.00016438,2]
[366353542,1750205447109,-490.0,0.00016438,2]
[366353543,1750205447119,-500.0,0.00016438,2]
[366353544,1750205447129,-490.0,0.00016438,2]
[366353545,1750205447139,-490.0,0.00016438,2]
[366353546,1750205447149,-490.0,0.00016438,2]
[366353547,1750205447162,-490.0,0.00016438,2]
[366353548,1750205447172,-490.0,0.00016438,2]
[366353549,1750205447182,-159.424321,0.00016438,2]
[366353550,1750205447192,-490.0,0.00016438,2]
[366353551,1750205447202,-1855.59,0.00016438,2]
[366353552,1750205447212,-490.0,0.00016438,2]
[366353553,1750205447222,-490.0,0.00016438,2]